bitfinex/quotes_SOLUSD_20241220
["timestamp","ask_amount","ask_price","bid_price","bid_amount"]
[1734723382158,4.87439323,193.16,193.15,29.1375292]
[1734723382570,4.87439323,193.16,193.15,16.1942292]
[1734723383659,4.87439323,193.16,193.15,39.9711132]
[1734723385086,4.87439323,193.16,193.15,16.1942292]
[1734723389082,4.87439323,193.16,193.11,13.02375028]
[1734723389290,4.87439323,193.16,193.14,16.1942292]
[1734723392901,4.87439323,193.16,193.15,23.776884]
[1734723393075,1.32859323,193.16,193.15,36.720184]
[1734723394304,9.323e-05,193.16,193.15,36.720184]
[1734723394595,9.323e-05,193.16,193.15,49.920184]
[1734723394903,9.323e-05,193.16,193.15,40.40247872]
[1734723395094,9.323e-05,193.16,193.15,56.59670792]
[1734723395398,0.02,193.26,193.19,23.776884]
[1734723395595,0.02,193.26,193.23,16.1942292]
[1734723395770,0.02,193.26,193.18,20.0]
[1734723395974,0.02,193.26,193.21,16.1942292]
[1734723396906,0.02,193.26,193.23,16.1942292]
[1734723398707,0.02,193.26,193.21,16.1942292]
[1734723400386,0.02,193.26,193.12,2.09911457]
[1734723400591,16.2142292,193.26,193.18,16.1942292]
[1734723401785,0.02,193.26,193.18,16.1942292]
[1734723401991,16.2142292,193.26,193.18,16.1942292]
[1734723402802,0.02,193.26,193.2,16.1942292]
[1734723404001,0.02,193.26,193.22,16.1942292]
[1734723406993,0.02,193.26,193.24,16.1942292]
[1734723407411,0.02,193.26,193.18,12.9409]
[1734723407412,0.02,193.26,193.22,16.1942292]
[1734723408921,0.02,193.26,193.2,16.1942292]
[1734723410181,0.02,193.26,193.24,0.07835028]
[1734723412490,0.02,193.26,193.24,16.27257948]
[1734723419520,0.02,193.26,193.25,1.615]
[1734723419692,0.02,193.26,193.25,7.6663]
[1734723420003,0.02,193.26,193.25,23.8605292]
[1734723420316,0.02,193.26,193.25,16.1942292]
[1734723422020,0.02,193.26,193.24,0.07835028]
[1734723422231,0.02,193.26,193.25,16.1942292]
[1734723426712,0.02,193.26,193.25,10.28616901]
[1734723428629,0.02,193.26,193.24,0.07835028]
[1734723428831,0.02,193.26,193.24,10.36451929]
[1734723429431,0.02,193.26,193.25,10.28616901]
[1734723430014,0.02,193.26,193.24,0.07835028]
[1734723430015,0.02,193.26,193.24,10.36451929]
[1734723430833,0.02,193.26,193.24,0.07835028]
[1734723431716,0.02,193.26,193.24,10.36451929]
[1734723434626,0.02,193.26,193.25,16.07118309]
[1734723435336,0.02,193.26,193.24,0.07835028]
[1734723435537,0.02,193.26,193.24,16.14953337]
[1734723438038,0.02,193.26,193.24,0.07835028]
[1734723438818,20.0,193.25,193.24,0.07835028]
[1734723440043,43.776884,193.25,193.24,0.07835028]
[1734723440356,20.0,193.25,193.24,0.07835028]
[1734723441222,17.66878309,193.26,193.24,0.07835028]
[1734723446046,23.776884,193.25,193.24,0.07835028]
[1734723446845,67.873484,193.25,193.24,5.028e-05]
[1734723447058,20.0,193.18,193.08,22.19278309]
[1734723447404,16.07118309,193.17,193.08,22.19278309]
[1734723447721,16.07118309,193.15,193.08,16.07118309]
[1734723447928,16.07118309,193.11,193.04,16.07118309]
[1734723448452,16.07118309,193.09,193.02,16.07118309]
[1734723449349,1.5374,193.13,192.94,12.9573]
[1734723449350,16.07118309,193.06,192.94,12.9573]
[1734723449562,16.07118309,193.1,193.03,16.07118309]
[1734723449729,22.18228309,193.12,193.03,16.07118309]
[1734723450832,16.07118309,193.1,193.03,16.07118309]
[1734723451034,16.07118309,193.12,193.03,16.07118309]
[1734723451639,16.07118309,193.12,193.05,16.07118309]
[1734723451845,1.5374,193.13,193.05,16.07118309]
[1734723452765,16.07118309,193.12,193.05,16.07118309]
[1734723452944,16.07118309,193.1,193.03,16.07118309]
[1734723453146,16.07118309,193.08,193.01,16.07118309]
[1734723453941,16.07118309,193.1,193.03,16.07118309]
[1734723454368,16.07118309,193.12,193.05,16.07118309]
[1734723455957,16.07118309,193.16,193.08,16.07118309]
[1734723456149,16.07118309,193.16,193.1,16.07118309]
[1734723456345,16.07118309,193.16,193.08,16.07118309]
[1734723456769,16.07118309,193.18,193.1,16.07118309]
[1734723458356,16.07118309,193.16,193.08,16.07118309]
[1734723458781,16.07118309,193.18,193.1,16.07118309]
[1734723460785,16.07118309,193.16,193.03,7.9143]
[1734723460993,16.07118309,193.12,193.04,16.07118309]
[1734723461492,31.16,193.19,193.03,7.9143]
[1734723461493,16.07118309,193.1,193.03,7.9143]
[1734723461692,16.07118309,193.1,193.02,16.07118309]
[1734723462493,16.07118309,193.12,193.04,16.07118309]
[1734723462871,16.07118309,193.14,193.06,16.07118309]
[1734723464295,16.07118309,193.16,193.08,16.07118309]
[1734723466193,45.6182,193.21,193.11,16.07118309]
[1734723466194,16.07118309,193.19,193.11,16.07118309]
[1734723466375,1.5189,193.21,193.13,16.07118309]
[1734723466579,16.07118309,193.22,193.13,16.07118309]
[1734723466777,16.07118309,193.24,193.15,16.07118309]
[1734723466975,16.07118309,193.22,193.15,16.07118309]
[1734723467488,16.07118309,193.24,193.15,16.07118309]
[1734723468885,17.75218309,193.26,193.17,16.07118309]
[1734723469696,0.02,193.26,193.19,16.07118309]
[1734723469949,0.02,193.26,193.21,16.07118309]
[1734723472886,16.07118309,193.24,193.16,1.5155]
[1734723473221,20.0,193.25,193.15,22.52078309]
[1734723473222,16.07118309,193.22,193.15,22.52078309]
[1734723475004,16.07118309,193.22,193.13,16.07118309]
[1734723475401,16.07118309,193.2,193.11,1.6334]
[1734723475701,16.07118309,193.18,193.09,22.52988309]
[1734723480020,16.07118309,193.12,193.04,16.07118309]
[1734723481512,16.07118309,193.14,193.06,16.07118309]
[1734723481710,16.07118309,193.16,193.08,16.07118309]
[1734723482311,16.07118309,193.14,193.06,16.07118309]
[1734723482533,16.07118309,193.12,193.04,16.07118309]
[1734723482956,16.07118309,193.16,193.08,16.07118309]
[1734723483815,16.07118309,193.14,193.06,16.07118309]
[1734723484043,16.07118309,193.16,193.06,16.07118309]
[1734723484652,16.07118309,193.16,193.08,16.07118309]
[1734723484817,16.07118309,193.2,193.12,16.07118309]
[1734723485507,16.07118309,193.18,193.1,16.07118309]
[1734723486636,12.9366,193.25,193.12,16.07118309]
[1734723486946,6.6171091,193.26,193.14,16.07118309]
[1734723486947,16.07118309,193.22,193.14,16.07118309]
[1734723487154,16.07118309,193.18,193.1,16.07118309]
[1734723488422,16.07118309,193.2,193.12,16.07118309]
[1734723489521,16.07118309,193.22,193.14,16.07118309]
[1734723490535,16.07118309,193.18,193.11,12.9455]
[1734723490740,16.07118309,193.18,193.1,16.07118309]
[1734723492545,16.07118309,193.2,193.12,16.07118309]
[1734723495149,16.07118309,193.18,193.1,16.07118309]
[1734723495862,16.07118309,193.2,193.12,16.07118309]
[1734723496041,16.07118309,193.2,193.09,8.0932]
[1734723496042,0.02,193.26,193.14,16.07118309]
[1734723496354,16.07118309,193.16,193.09,8.0932]
[1734723496658,16.07118309,193.16,193.09,24.16438309]
[1734723496821,16.07118309,193.16,193.07,16.07118309]
[1734723497025,16.07118309,193.14,193.07,16.07118309]
[1734723497628,16.07118309,193.14,193.05,16.07118309]
[1734723498139,16.07118309,193.12,193.05,16.07118309]
[1734723498339,16.07118309,193.12,193.03,16.07118309]
[1734723498951,16.07118309,193.1,193.03,16.07118309]
[1734723499254,1.6611,193.12,192.99,17.64758309]
[1734723499255,16.07118309,193.06,192.99,17.64758309]
[1734723499839,16.07118309,193.06,192.99,16.07118309]
[1734723500059,16.07118309,193.07,192.99,16.07118309]
[1734723500356,16.07118309,193.05,192.97,16.07118309]
[1734723500736,16.07118309,193.02,192.95,22.26338309]
[1734723500936,16.07118309,193.02,192.95,6.1922]
[1734723501453,16.07118309,193.02,192.94,16.07118309]
[1734723501656,16.07118309,192.99,192.9,6.3123]
[1734723501955,16.07118309,193.0,192.92,16.07118309]
[1734723502138,16.07118309,193.03,192.96,16.07118309]
[1734723503251,16.07118309,193.04,192.97,16.07118309]
[1734723504024,16.07118309,193.04,192.96,16.07118309]
[1734723504231,16.07118309,193.03,192.95,16.07118309]
[1734723504532,16.07118309,193.03,192.96,16.07118309]
[1734723505356,16.07118309,193.05,192.97,16.07118309]
[1734723505738,16.07118309,193.04,192.97,16.07118309]
[1734723506255,16.07118309,193.03,192.96,36.07118309]
[1734723506462,16.07118309,193.03,192.96,20.0]
[1734723506759,16.07118309,193.03,192.94,16.07118309]
[1734723508261,16.07118309,193.01,192.94,16.07118309]
[1734723508735,16.07118309,193.03,192.96,16.07118309]
[1734723509563,16.07118309,192.99,192.94,20.0]
[1734723509747,16.07118309,192.99,192.91,29.03058309]
[1734723510146,16.07118309,193.01,192.93,16.07118309]
[1734723511736,16.07118309,193.03,192.95,16.07118309]
[1734723511931,16.07118309,193.05,192.97,16.07118309]
[1734723512154,16.07118309,193.05,192.98,16.07118309]
[1734723512362,16.07118309,193.03,192.95,16.07118309]
[1734723512743,16.07118309,193.03,192.96,16.07118309]
[1734723515263,16.07118309,193.03,192.94,16.07118309]
[1734723515467,16.07118309,193.01,192.94,16.07118309]
[1734723515668,16.07118309,193.01,192.92,16.07118309]
[1734723515841,16.07118309,193.01,192.94,16.07118309]
[1734723516168,16.07118309,192.99,192.92,16.07118309]
[1734723516533,16.07118309,193.01,192.92,16.07118309]
[1734723516737,16.00889785,193.01,192.9,19.2722]
[1734723516965,16.00889785,193.01,192.93,16.07118309]
[1734723517266,16.07118309,193.03,192.95,16.07118309]
[1734723517444,16.07118309,193.03,192.97,16.07118309]
[1734723517770,16.07118309,193.03,192.95,16.07118309]
[1734723518367,16.07118309,193.05,192.97,16.07118309]
[1734723518563,16.07118309,193.05,192.99,16.07118309]
[1734723519346,16.07118309,193.05,192.97,17.73328309]
[1734723521045,16.07118309,193.07,192.97,17.73328309]
[1734723521248,16.07118309,193.05,192.97,17.73328309]
[1734723521675,16.07118309,193.05,192.97,16.07118309]
[1734723521870,16.07118309,193.03,192.95,29.02768309]
[1734723522049,16.07118309,193.03,192.95,16.07118309]
[1734723524382,16.07118309,193.05,192.97,16.07118309]
[1734723529073,16.07118309,193.07,192.99,16.07118309]
[1734723529584,16.07118309,193.07,192.97,16.07118309]
[1734723529892,16.07118309,193.05,192.97,16.07118309]
[1734723530191,16.07118309,193.05,192.97,16.15638709]
[1734723531367,16.07118309,193.07,192.97,16.15638709]
[1734723531757,16.07118309,193.05,192.97,0.085204]
[1734723532384,16.07118309,193.05,192.98,16.07118309]
[1734723532687,16.07118309,193.07,192.98,16.07118309]
[1734723534796,16.07118309,193.05,192.98,16.07118309]
[1734723535272,16.07118309,193.07,192.98,16.07118309]
[1734723536586,23.776884,193.11,192.98,10.31724351]
[1734723536587,10.31724351,193.06,192.98,10.31724351]
[1734723536791,10.31724351,193.02,192.97,0.085204]
[1734723536969,10.31724351,193.0,192.97,0.085204]
[1734723537288,10.31724351,192.98,192.97,0.085204]
[1734723537674,21.5585,193.04,192.97,0.085204]
[1734723537871,10.31724351,193.02,192.97,0.085204]
[1734723538105,21.5585,193.04,192.97,10.40244751]
[1734723538106,20.0,193.04,192.97,10.40244751]
[1734723538388,10.31724351,193.06,192.97,10.40244751]
[1734723540990,10.31724351,193.04,192.97,10.40244751]
[1734723541488,10.31724351,193.04,192.97,0.085204]
[1734723541794,10.31724351,193.04,192.98,3.7436341]
[1734723542788,10.31724351,193.04,192.99,3.7436341]
[1734723543297,10.31724351,193.04,192.98,3.7436341]
[1734723543993,10.31724351,193.04,192.99,3.7436341]
[1734723544408,10.31724351,193.02,193.0,3.7436341]
[1734723544694,10.31724351,193.01,193.0,3.7436341]
[1734723545040,10.31724351,193.01,192.93,3.7436341]
[1734723545178,10.31724351,192.99,192.93,3.7436341]
[1734723545876,10.31724351,192.99,192.94,3.7436341]
[1734723546321,10.31724351,192.99,192.95,3.7436341]
[1734723546703,10.31724351,192.99,192.92,1.6111]
[1734723546704,10.31724351,192.99,192.93,3.7436341]
[1734723547019,23.776884,193.07,192.93,14.06087761]
[1734723547178,10.31724351,193.01,192.93,14.06087761]
[1734723547597,10.31724351,193.01,192.94,3.7436341]
[1734723547776,10.31724351,193.03,192.95,23.27394351]
[1734723548414,10.31724351,193.03,192.96,3.7436341]
[1734723548916,10.31724351,193.03,192.97,3.7436341]
[1734723549088,10.31724351,192.99,192.97,3.7436341]
[1734723549494,10.31724351,192.99,192.93,3.7436341]
[1734723549900,10.31724351,192.99,192.94,3.7436341]
[1734723550287,10.31724351,192.99,192.95,3.7436341]
[1734723550709,16.13368307,192.98,192.93,3.7436341]
[1734723551213,16.13368307,192.98,192.91,3.7436341]
[1734723551400,16.13368307,192.94,192.91,3.7436341]
[1734723551792,16.13368307,192.92,192.88,3.7436341]
[1734723552008,16.13368307,192.9,192.88,3.7436341]
[1734723552188,54.936884,192.89,192.88,3.7436341]
[1734723552548,20.0,192.86,192.84,3.7436341]
[1734723552817,39.91056707,192.85,192.84,3.7436341]
[1734723553106,39.91056707,192.85,192.8,7.82904873]
[1734723553310,16.13368307,192.83,192.75,16.13368307]
[1734723553906,16.13368307,192.83,192.77,16.13368307]
[1734723554400,16.13368307,192.83,192.75,16.13368307]
[1734723556014,16.13368307,192.85,192.72,2.0188507]
[1734723556309,16.13368307,192.85,192.77,16.13368307]
[1734723557812,16.13368307,192.87,192.79,16.13368307]
[1734723558010,16.13368307,192.89,192.81,16.13368307]
[1734723558315,8.0590373,192.9,192.79,23.776884]
[1734723558610,40.2951865,192.92,192.86,16.13368307]
[1734723558810,40.2951865,192.92,192.87,16.13368307]
[1734723559394,17.76998307,192.95,192.87,16.13368307]
[1734723559606,17.76998307,192.95,192.89,16.13368307]
[1734723560050,17.76998307,192.95,192.87,16.13368307]
[1734723561302,16.13368307,192.97,192.89,16.13368307]
[1734723561906,8.0590373,193.0,192.93,16.13368307]
[1734723562115,8.0590373,193.0,192.95,16.13368307]
[1734723562592,16.13368307,193.02,192.95,16.13368307]
[1734723564420,16.13368307,193.04,192.97,16.13368307]
[1734723565206,16.13368307,193.06,192.99,16.13368307]
[1734723565415,8.0590373,193.08,192.94,0.77718252]
[1734723565615,8.0590373,193.09,193.07,16.13368307]
[1734723566523,8.0590373,193.13,193.08,16.13368307]
[1734723566823,8.0590373,193.13,193.12,16.13368307]
[1734723567125,32.12349527,193.21,193.12,16.13368307]
[1734723567702,1.8195749,193.21,193.14,16.13368307]
[1734723568000,1.8195749,193.21,193.07,13.7249388]
[1734723568001,16.13368307,193.19,193.1,16.13368307]
[1734723568200,1.8195749,193.21,193.14,16.13368307]
[1734723568623,25.75523506,193.2,193.12,25.75523506]
[1734723569725,0.2729749,193.21,193.16,25.75523506]
[1734723569913,0.2729749,193.21,193.14,25.75523506]
[1734723571398,20.0,193.19,193.14,25.75523506]
[1734723571604,25.75523506,193.2,193.12,25.75523506]
[1734723572117,20.0,193.19,193.14,25.75523506]
[1734723573031,0.2729749,193.21,193.16,25.75523506]
[1734723573208,20.2729749,193.21,193.16,25.75523506]
[1734723573527,20.2729749,193.21,193.14,25.75523506]
[1734723574650,25.75523506,193.16,193.07,25.75523506]
[1734723574930,25.75523506,193.14,193.07,25.75523506]
[1734723575318,45.75523506,193.16,193.07,25.75523506]
[1734723575629,23.776884,193.15,193.07,25.75523506]
[1734723576421,25.75523506,193.14,193.07,25.75523506]
[1734723577604,25.75523506,193.14,193.06,6.1311]
[1734723578527,25.75523506,193.12,193.03,27.28263506]
[1734723578710,25.75523506,193.12,193.03,25.75523506]
[1734723578921,25.75523506,193.08,193.01,32.30853506]
[1734723579229,25.75523506,193.06,192.99,25.75523506]
[1734723579528,25.75523506,193.06,192.97,27.28093506]
[1734723579730,25.75523506,193.04,192.97,27.28093506]
[1734723580525,25.75523506,193.04,192.96,6.5533]
[1734723581030,69.86213506,193.1,192.95,25.75523506]
[1734723581031,25.75523506,193.02,192.95,25.75523506]
[1734723582237,25.75523506,193.02,192.93,25.75523506]
[1734723582918,23.776884,193.03,192.93,25.75523506]
[1734723582919,25.75523506,193.0,192.93,25.75523506]
[1734723583331,25.75523506,192.98,192.89,25.75523506]
[1734723583630,25.75523506,192.96,192.89,25.75523506]
[1734723584139,25.75523506,192.96,192.87,32.33073506]
[1734723585037,25.75523506,192.94,192.85,25.75523506]
[1734723585239,25.75523506,192.92,192.84,14.5685]
[1734723586337,8.0590373,193.02,192.95,20.0]
[1734723586646,8.0590373,193.02,192.9,25.75523506]
[1734723586647,8.0590373,193.01,192.96,25.75523506]
[1734723587146,25.75523506,193.05,192.96,25.75523506]
[1734723587639,20.0,193.02,192.96,25.75523506]
[1734723589317,23.776884,193.04,192.96,25.75523506]
[1734723589737,23.776884,193.04,192.98,25.75523506]
[1734723590242,23.776884,193.04,192.96,25.75523506]
[1734723592625,25.75523506,193.03,192.96,25.75523506]
[1734723593434,20.0,193.01,192.96,25.75523506]
[1734723593658,25.75523506,193.09,193.0,25.75523506]
[1734723593840,25.75523506,193.07,192.98,32.41593506]
[1734723594829,20.0,193.05,192.99,16.11819596]
[1734723595033,20.0,193.05,193.01,16.11819596]
[1734723595749,16.11819596,193.08,193.01,16.11819596]
[1734723595969,16.11819596,193.1,193.01,16.11819596]
[1734723596441,1.5918,193.12,193.03,16.11819596]
[1734723596442,16.11819596,193.12,193.03,16.11819596]
[1734723597052,16.11819596,193.1,193.03,16.11819596]
[1734723597751,16.11819596,193.1,193.01,16.11819596]
[1734723598855,16.11819596,193.08,193.01,16.11819596]
[1734723599354,16.11819596,193.08,192.99,16.11819596]
[1734723599564,16.11819596,193.04,192.97,16.11819596]
[1734723599739,16.11819596,193.04,192.96,1.5543]
[1734723599932,16.11819596,193.02,192.95,16.11819596]
[1734723600133,31.16,193.08,192.93,22.43569596]
[1734723600134,16.11819596,193.01,192.93,22.43569596]
[1734723600952,16.11819596,193.02,192.94,16.11819596]
[1734723601142,16.11819596,193.01,192.94,16.11819596]
[1734723601331,16.11819596,193.02,192.94,16.11819596]
[1734723601732,16.11819596,193.02,192.95,16.11819596]
[1734723602353,16.11819596,193.0,192.93,22.43569596]
[1734723602572,31.16,193.05,192.93,6.3175]
[1734723602573,16.11819596,192.99,192.93,6.3175]
[1734723602856,16.11819596,192.98,192.91,16.11819596]
[1734723603062,16.11819596,192.98,192.89,16.11819596]
[1734723603063,16.11819596,192.96,192.89,16.11819596]
[1734723603245,16.11819596,192.95,192.88,16.11819596]
[1734723603452,16.11819596,192.95,192.87,16.11819596]
[1734723603638,16.11819596,193.0,192.87,16.11819596]
[1734723603639,16.11819596,192.94,192.87,16.11819596]
[1734723603983,31.16,192.97,192.84,16.11819596]
[1734723603984,16.11819596,192.91,192.84,16.11819596]
[1734723604192,16.11819596,192.92,192.85,16.11819596]
[1734723604464,16.03299196,192.92,192.85,16.11819596]
[1734723604830,16.11819596,192.92,192.85,16.11819596]
[1734723605662,16.11819596,192.93,192.86,16.11819596]
[1734723605962,20.0,192.92,192.87,16.11819596]
[1734723606164,16.11819596,192.93,192.86,16.11819596]
[1734723606548,16.11819596,192.94,192.87,16.11819596]
[1734723607360,20.0,192.95,192.9,16.11819596]
[1734723607543,20.0,192.95,192.89,16.11819596]
[1734723607744,20.0,192.95,192.88,16.11819596]
[1734723607945,16.11819596,192.94,192.87,16.11819596]
[1734723609054,16.11819596,192.92,192.85,16.11819596]
[1734723609253,39.89507996,192.93,192.85,16.11819596]
[1734723609449,20.0,192.91,192.88,16.11819596]
[1734723609654,23.776884,192.94,192.88,16.11819596]
[1734723609969,8.0590373,192.99,192.81,19.1067]
[1734723609970,31.16,192.97,192.9,16.11819596]
[1734723610154,31.16,192.97,192.91,16.11819596]
[1734723610470,16.11819596,193.0,192.92,16.11819596]
[1734723610641,16.11819596,193.0,192.93,16.11819596]
[1734723610842,16.11819596,193.0,192.92,16.11819596]
[1734723611167,16.11819596,193.0,192.94,16.11819596]
[1734723611846,16.11819596,193.0,192.88,12.9608]
[1734723611847,16.11819596,192.98,192.9,16.11819596]
[1734723612047,16.11819596,192.96,192.88,16.11819596]
[1734723612259,16.11819596,192.94,192.88,16.11819596]
[1734723612771,16.11819596,192.94,192.86,16.11819596]
[1734723612970,20.0,192.91,192.84,16.11819596]
[1734723613269,16.11819596,192.92,192.84,16.11819596]
[1734723613638,16.11819596,192.92,192.86,16.11819596]
[1734723614293,16.11819596,192.92,192.86,14.61819596]
[1734723614786,54.936884,192.97,192.86,25.82458244]
[1734723614787,45.82458244,192.94,192.86,25.82458244]
[1734723616783,20.0,192.94,192.9,25.82458244]
[1734723616972,20.0,192.94,192.84,12.9636]
[1734723616973,25.82458244,193.0,192.92,25.82458244]
[1734723617174,25.82458244,192.98,192.9,25.82458244]
[1734723617395,25.82458244,192.96,192.88,25.82458244]
[1734723617569,25.82458244,192.94,192.86,25.82458244]
[1734723617918,25.82458244,192.92,192.84,25.82458244]
[1734723618688,23.776884,192.91,192.84,25.82458244]
[1734723618876,25.82458244,192.9,192.82,25.82458244]
[1734723619075,25.82458244,192.88,192.81,6.1412]
[1734723619278,23.776884,192.85,192.78,25.82458244]
[1734723621294,25.82458244,192.84,192.77,6.4443]
[1734723621684,25.82458244,192.84,192.72,1.9291507]
[1734723621685,25.82458244,192.82,192.72,0.4171507]
[1734723621875,23.776884,192.85,192.72,26.24173314]
[1734723621876,25.82458244,192.8,192.72,26.24173314]
[1734723622077,54.936884,192.85,192.72,0.4171507]
[1734723622078,25.82458244,192.78,192.72,0.4171507]
[1734723622281,25.82458244,192.76,192.72,0.4171507]
[1734723622896,25.82458244,192.8,192.72,0.4171507]
[1734723622897,25.82458244,192.73,192.72,0.4171507]
[1734723623107,75.42604888,192.73,192.72,0.4171507]
[1734723623390,25.82458244,192.65,192.61,6.5765]
[1734723623767,25.82458244,192.65,192.57,27.48708244]
[1734723624494,67.908484,192.73,192.57,27.48708244]
[1734723624495,20.0,192.7,192.57,27.48708244]
[1734723624693,25.82458244,192.66,192.57,27.48708244]
[1734723625076,36.748484,192.73,192.59,25.82458244]
[1734723625077,25.82458244,192.68,192.59,25.82458244]
[1734723625480,25.82458244,192.72,192.65,25.82458244]
[1734723625688,25.82458244,192.72,192.66,25.82458244]
[1734723626576,25.82458244,192.74,192.66,7.78430626]
[1734723626777,25.82458244,192.76,192.68,25.82458244]
[1734723627187,25.82458244,192.78,192.7,25.82458244]
[1734723627699,25.82458244,192.78,192.68,25.82458244]
[1734723627905,25.82458244,192.76,192.68,25.82458244]
[1734723628213,25.82458244,192.78,192.7,25.82458244]
[1734723628373,7.638,192.82,192.68,12.9747]
[1734723628374,25.82458244,192.82,192.74,25.82458244]
[1734723628776,25.82458244,192.82,192.7,1.6207]
[1734723628777,25.82458244,192.84,192.76,25.82458244]
[1734723628996,25.82458244,192.86,192.78,25.82458244]
[1734723629199,25.82458244,192.9,192.82,25.82458244]
[1734723629401,25.82458244,192.92,192.84,25.82458244]
[1734723629602,25.82458244,192.88,192.8,25.82458244]
[1734723630691,25.82458244,192.9,192.82,25.82458244]
[1734723631102,23.776884,192.89,192.82,25.82458244]
[1734723631476,23.776884,192.89,192.8,25.82458244]
[1734723632212,23.776884,192.89,192.82,25.82458244]
[1734723633575,20.0,192.86,192.8,25.82458244]
[1734723633801,25.82458244,192.86,192.79,6.66]
[1734723634008,23.776884,192.85,192.79,6.66]
[1734723634304,23.776884,192.87,192.79,6.66]
[1734723634483,25.82458244,192.9,192.82,25.82458244]
[1734723634681,23.776884,192.89,192.82,25.82458244]
[1734723634878,23.776884,192.89,192.8,25.82458244]
[1734723635122,25.82458244,192.88,192.8,25.82458244]
[1734723635311,23.776884,192.87,192.8,25.82458244]
[1734723635476,23.776884,192.87,192.79,6.66]
[1734723635477,25.82458244,192.9,192.82,25.82458244]
[1734723635681,25.82458244,192.92,192.84,25.82458244]
[1734723635885,25.82458244,192.9,192.82,25.82458244]
[1734723636291,25.82458244,192.92,192.84,25.82458244]
[1734723638509,25.82458244,192.94,192.86,25.82458244]
[1734723639410,25.82458244,192.92,192.84,25.82458244]
[1734723639912,25.82458244,192.9,192.82,25.82458244]
[1734723640608,25.82458244,192.86,192.79,6.66]
[1734723641089,25.82458244,192.86,192.76,25.82458244]
[1734723641282,25.82458244,192.84,192.76,25.82458244]
[1734723641488,25.82458244,192.82,192.75,1.6065]
[1734723641689,25.82458244,192.82,192.74,32.25198244]
[1734723642584,25.82458244,192.8,192.72,25.82458244]
[1734723643693,25.82458244,192.84,192.76,25.82458244]
[1734723644911,25.82458244,192.86,192.78,25.82458244]
[1734723648216,25.82458244,192.82,192.74,25.82458244]
[1734723648426,25.82458244,192.78,192.7,25.82458244]
[1734723649426,23.776884,192.73,192.65,27.33678244]
[1734723649616,45.82458244,192.76,192.67,25.82458244]
[1734723649925,31.19,192.79,192.69,25.82458244]
[1734723649926,25.82458244,192.78,192.69,25.82458244]
[1734723650423,25.82458244,192.78,192.71,25.82458244]
[1734723650807,49.60146644,192.8,192.71,25.82458244]
[1734723651315,25.82458244,192.8,192.73,25.82458244]
[1734723651897,25.82458244,192.82,192.73,25.82458244]
[1734723653217,25.82458244,192.84,192.75,25.82458244]
[1734723653518,25.82458244,192.84,192.77,25.82458244]
[1734723654200,25.82458244,192.86,192.77,25.82458244]
[1734723654816,25.82458244,192.86,192.79,25.82458244]
[1734723655822,25.82458244,192.88,192.79,25.82458244]
[1734723657311,25.82458244,192.84,192.77,25.82458244]
[1734723657520,25.82458244,192.82,192.75,6.173]
[1734723658100,25.82458244,192.84,192.75,31.99758244]
[1734723658300,23.776884,192.83,192.75,31.99758244]
[1734723658830,45.82458244,192.86,192.79,25.82458244]
[1734723659424,25.82458244,192.86,192.79,25.82458244]
[1734723660426,25.82458244,192.86,192.77,25.82458244]
[1734723660608,25.82458244,192.84,192.75,31.99758244]
[1734723660800,25.82458244,192.82,192.75,6.173]
[1734723661005,23.776884,192.81,192.73,25.82458244]
[1734723661208,25.82458244,192.8,192.71,27.38038244]
[1734723661612,25.82458244,192.82,192.73,25.82458244]
[1734723661819,25.82458244,192.82,192.75,25.82458244]
[1734723662124,25.82458244,192.82,192.73,25.82458244]
[1734723662326,25.82458244,192.8,192.73,25.82458244]
[1734723662628,25.82458244,192.76,192.7,6.1821]
[1734723663000,25.82458244,192.78,192.7,6.1821]
[1734723663634,31.19,192.8,192.67,25.82458244]
[1734723663635,25.82458244,192.74,192.67,25.82458244]
[1734723664033,25.82458244,192.74,192.65,7.7958]
[1734723664034,25.82458244,192.76,192.69,25.82458244]
[1734723664735,23.776884,192.75,192.69,25.82458244]
[1734723664942,1.5238,192.81,192.69,25.82458244]
[1734723664943,25.82458244,192.78,192.69,25.82458244]
[1734723665108,23.776884,192.77,192.7,25.82458244]
[1734723665939,57.01458244,192.84,192.76,25.82458244]
[1734723666246,27.46768244,192.86,192.78,25.82458244]
[1734723666405,25.82458244,192.86,192.78,25.82458244]
[1734723667001,25.82458244,192.84,192.76,25.82458244]
[1734723667400,25.82458244,192.82,192.74,25.82458244]
[1734723668236,23.776884,192.81,192.74,25.82458244]
[1734723668725,25.82458244,192.8,192.72,25.82458244]
[1734723669428,23.776884,192.81,192.74,25.82458244]
[1734723670426,25.82458244,192.82,192.74,25.82458244]
[1734723671531,23.776884,192.81,192.74,25.82458244]
[1734723671707,23.776884,192.79,192.72,25.82458244]
[1734723671907,23.776884,192.77,192.71,6.4043]
[1734723672115,23.776884,192.75,192.68,25.82458244]